bitfinex/quotes_SOLUSD_20250611
["timestamp","ask_amount","ask_price","bid_price","bid_amount"]
[1749612210639,12.77853485,165.74,165.73,29.36339449]
[1749612210837,12.77853485,165.74,165.73,31.5657204]
[1749612211538,12.77853485,165.74,165.73,29.36376522]
[1749612211748,12.77853485,165.74,165.73,31.56821044]
[1749612212056,12.77853485,165.74,165.73,31.56918012]
[1749612212245,12.77853485,165.74,165.73,31.56913666]
[1749612212427,12.77853485,165.74,165.73,27.16301673]
[1749612212625,12.77853485,165.74,165.73,31.56965912]
[1749612213346,12.77853485,165.74,165.73,31.56806408]
[1749612213531,12.77853485,165.74,165.73,31.56805061]
[1749612213844,12.77853485,165.74,165.73,27.16271401]
[1749612213845,2.48773009,165.74,165.73,27.16271401]
[1749612214030,12.77853485,165.74,165.73,27.16271299]
[1749612214425,12.77853485,165.74,165.73,29.36682493]
[1749612214627,12.77853485,165.74,165.73,29.36666429]
[1749612214826,12.77853485,165.74,165.73,31.56999643]
[1749612215024,12.77853485,165.74,165.73,27.16334507]
[1749612215344,12.77853485,165.74,165.73,29.36608571]
[1749612215530,12.77853485,165.74,165.73,27.16313686]
[1749612215719,12.77853485,165.74,165.73,29.36640223]
[1749612215926,12.77853485,165.74,165.73,29.36637639]
[1749612216128,12.77853485,165.74,165.73,31.56976236]
[1749612216322,12.77853485,165.74,165.73,31.56978119]
[1749612216535,12.77853485,165.74,165.73,24.96]
[1749612216842,12.77853485,165.74,165.73,27.16298853]
[1749612217137,12.77853485,165.74,165.73,29.36578197]
[1749612217341,12.77853485,165.74,165.73,31.56867295]
[1749612217545,2.48773009,165.74,165.73,31.56862348]
[1749612217735,12.77853485,165.74,165.73,24.96]
[1749612218042,2.48773009,165.74,165.73,27.16272939]
[1749612218244,12.77853485,165.74,165.73,24.96]
[1749612218443,12.77853485,165.74,165.73,27.16326653]
[1749612218650,12.77853485,165.74,165.73,29.36654294]
[1749612218941,12.77853485,165.74,165.73,31.57058039]
[1749612219246,12.77853485,165.74,165.73,24.96]
[1749612219444,12.77853485,165.74,165.73,27.16312304]
[1749612219745,2.48773009,165.74,165.73,31.56798335]
[1749612219941,12.77853485,165.74,165.73,31.56728488]
[1749612220145,12.77853485,165.74,165.73,27.16217218]
[1749612220332,12.77853485,165.74,165.73,31.56644414]
[1749612220529,2.48773009,165.74,165.73,27.16217218]
[1749612220832,12.77853485,165.74,165.73,27.16093937]
[1749612221031,12.77853485,165.74,165.73,31.56327958]
[1749612221248,12.77853485,165.74,165.73,31.56331576]
[1749612221443,2.48773009,165.74,165.73,50.35456998]
[1749612221646,2.48773009,165.74,165.73,45.95366768]
[1749612221830,2.48773009,165.74,165.73,45.95371589]
[1749612222028,2.48773009,165.74,165.73,50.35724061]
[1749612222226,1e-08,165.74,165.73,60.98742427]
[1749612222449,1e-08,165.74,165.73,83.42585379]
[1749612222674,1e-08,165.74,165.73,68.71280739]
[1749612222834,1e-08,165.74,165.73,81.20422471]
[1749612223026,1e-08,165.74,165.73,79.00365479]
[1749612223250,1e-08,165.74,165.73,76.80308287]
[1749612223448,1e-08,165.74,165.73,83.40511686]
[1749612223753,1e-08,165.74,165.73,83.40492888]
[1749612224048,1e-08,165.74,165.73,76.80308287]
[1749612224238,0.36585505,165.79,165.77,18.64964886]
[1749612224439,10.65665981,165.79,165.78,50.33198077]
[1749612224640,0.36585505,165.79,165.78,50.33216076]
[1749612224950,10.65665981,165.79,165.78,50.336834]
[1749612225127,0.36585505,165.79,165.78,48.1367379]
[1749612225327,10.65665981,165.79,165.78,45.93423013]
[1749612225536,10.65665981,165.79,165.78,45.93431072]
[1749612225745,10.65665981,165.79,165.78,48.13700004]
[1749612225927,10.65665981,165.79,165.78,45.93440523]
[1749612226129,0.36585505,165.79,165.78,45.93432495]
[1749612226327,10.65665981,165.79,165.78,48.13661412]
[1749612226530,10.0,165.9,165.78,48.13661412]
[1749612226531,7.15010914,165.98,165.82,39.13741043]
[1749612226730,1.0,166.0,165.95,28.94045362]
[1749612226947,1.0,166.0,165.98,26.0]
[1749612227152,21.16458963,166.1,166.0,6.1660429]
[1749612227354,5.9498,166.21,166.12,26.0]
[1749612227650,159.16314286,166.23,166.14,18.79181043]
[1749612227856,159.16314286,166.23,166.22,44.64964886]
[1749612228154,159.16314286,166.23,166.22,25.3]
[1749612228453,121.09214629,166.23,166.22,11.44065012]
[1749612228635,60.55487378,166.23,166.22,32.2896872]
[1749612228838,28.98824617,166.23,166.22,57.74746087]
[1749612229035,5.76,166.42,166.25,26.0]
[1749612229234,10.0,166.48,166.29,26.0]
[1749612229443,16.93993802,166.36,166.3,2.18013585]
[1749612229646,10.0,166.47,166.31,32.52284028]
[1749612229834,6.06,166.52,166.31,25.98]
[1749612229835,11.6223,166.45,166.31,25.98]
[1749612230041,1.6223,166.45,166.32,16.93993802]
[1749612230243,1.6223,166.45,166.35,16.93993802]
[1749612230444,1.6223,166.45,166.4,26.0]
[1749612230647,20.82,166.55,166.41,50.70861862]
[1749612230831,16.93993802,166.5,166.42,6.5266404]
[1749612231034,16.93993802,166.5,166.22,39.10740489]
[1749612231035,16.93993802,166.43,166.38,26.0]
[1749612231235,25.72818465,166.4,166.38,26.0]
[1749612231442,6.06,166.46,166.38,26.0]
[1749612231640,25.72818465,166.39,166.35,26.12]
[1749612231939,10.0,166.53,166.35,26.12]
[1749612232142,1.6561,166.56,166.35,26.12]
[1749612232333,1.6561,166.56,166.45,26.0]
[1749612232334,7.7161,166.56,166.45,26.0]
[1749612232534,25.72818465,166.48,166.45,26.16]
[1749612232737,33.44428465,166.56,166.45,26.16]
[1749612232931,1.6561,166.56,166.48,26.0]
[1749612233163,1.6561,166.56,166.36,9.30635249]
[1749612233164,25.72818465,166.49,166.41,9.30635249]
[1749612233334,25.72818465,166.42,166.35,26.0]
[1749612233541,6.06,166.47,166.37,26.0]
[1749612233755,25.72818465,166.38,166.32,25.72818465]
[1749612233941,25.72818465,166.44,166.22,19.06601123]
[1749612233942,25.72818465,166.33,166.22,19.06601123]
[1749612234144,25.72818465,166.44,166.26,25.72818465]
[1749612234649,25.72818465,166.33,166.27,51.94818465]
[1749612234846,25.72818465,166.31,166.26,25.72818465]
[1749612235050,25.72818465,166.31,166.27,26.2]
[1749612235248,25.72818465,166.33,166.28,25.72818465]
[1749612235449,6.06,166.42,166.31,25.72818465]
[1749612235743,25.72818465,166.37,166.35,26.0]
[1749612235943,25.72818465,166.36,166.35,26.0]
[1749612236154,25.72818465,166.36,166.27,18.56716695]
[1749612236457,25.72818465,166.36,166.12,52.34880551]
[1749612236458,6.06,166.42,166.34,26.0]
[1749612236649,25.72818465,166.35,166.34,26.22]
[1749612237239,6.06,166.42,166.34,26.22]
[1749612237458,25.72818465,166.35,166.33,26.24]
[1749612237644,25.72818465,166.34,166.3,26.24]
[1749612237834,25.72818465,166.32,166.3,26.24]
[1749612238045,25.72818465,166.31,166.3,26.24]
[1749612238240,6.06,166.42,166.3,26.22]
[1749612238436,32.5198,166.45,166.31,26.22]
[1749612238642,25.72818465,166.36,166.34,26.0]
[1749612239034,25.72818465,166.35,166.34,26.14216157]
[1749612239240,25.72818465,166.35,166.31,26.22]
[1749612239459,0.14216157,166.43,166.29,18.64964886]
[1749612239656,57.78818465,166.44,166.3,18.64964886]
[1749612239862,25.72818465,166.34,166.31,0.14216157]
[1749612240050,25.72818465,166.34,166.33,26.0]
[1749612240458,25.72818465,166.34,166.32,26.0]
[1749612240664,25.72818465,166.33,166.32,26.0]
[1749612240959,25.72818465,166.33,166.29,26.26]
[1749612241166,25.72818465,166.3,166.29,26.26]
[1749612241368,26.0,166.41,166.28,26.26]
[1749612241551,31.78818465,166.44,166.29,44.90964886]
[1749612241552,25.72818465,166.32,166.29,44.90964886]
[1749612241743,25.72818465,166.33,166.32,26.14216157]
[1749612241939,25.72818465,166.33,166.32,26.0]
[1749612242246,25.72818465,166.33,166.26,26.32]
[1749612242449,25.72818465,166.27,166.19,18.64964886]
[1749612242767,25.72818465,166.2,166.14,25.941427]
[1749612242973,25.72818465,166.17,166.15,26.34]
[1749612243149,25.72818465,166.16,166.11,25.72818465]
[1749612243557,46.36501043,166.29,166.1,25.72818465]
[1749612243866,25.72818465,166.2,166.15,18.64964886]
[1749612244067,25.72818465,166.19,166.16,26.32]
[1749612244373,6.36,166.28,166.19,18.64964886]
[1749612244544,1.5732,166.29,166.19,18.64964886]
[1749612244545,25.72818465,166.23,166.21,26.0]
[1749612244740,25.72818465,166.22,166.21,26.14216157]
[1749612245366,1.5732,166.29,166.21,0.14216157]
[1749612245747,25.72818465,166.22,166.21,0.14216157]
[1749612246253,1.5732,166.29,166.24,26.0]
[1749612246456,25.72818465,166.25,166.24,26.14216157]
[1749612246656,25.72818465,166.25,166.24,52.48216157]
[1749612246967,6.36,166.31,166.28,26.0]
[1749612247173,25.72818465,166.29,166.24,26.34]
[1749612247374,25.72818465,166.32,166.24,26.34]
[1749612247375,25.72818465,166.25,166.24,26.34]
[1749612247547,25.72818465,166.25,166.13,89.9]
[1749612247871,25.72818465,166.2,166.14,26.38]
[1749612248169,6.36,166.24,166.14,26.38]
[1749612248170,25.72818465,166.16,166.14,26.38]
[1749612248779,25.72818465,166.17,166.14,26.38]
[1749612249069,165.58464286,166.78,166.5,28.64964886]
[1749612249247,159.16314286,166.78,166.65,26.0]
[1749612249446,10.0,166.97,166.75,26.0]
[1749612249665,10.0,166.81,166.57,36.23]
[1749612249865,10.0,166.86,166.68,87.95818465]
[1749612250079,10.0,166.85,166.69,65.58909114]
[1749612250380,10.0,166.84,166.63,51.72818465]
[1749612250582,10.0,166.84,166.7,26.0]
[1749612250877,25.72818465,166.73,166.69,26.0]
[1749612251072,25.72818465,166.72,166.67,26.0]
[1749612251281,25.72818465,166.74,166.69,26.0]
[1749612251447,25.72818465,166.73,166.67,0.59956417]
[1749612251767,1.5236,166.85,166.67,0.59957382]
[1749612251966,1.5236,166.85,166.69,26.0]
[1749612252274,25.72818465,166.7,166.56,10.0]
[1749612252578,6.5412,166.81,166.68,51.72818465]
[1749612252866,6.5412,166.81,166.64,26.59943241]
[1749612252867,25.72818465,166.8,166.64,26.59943241]
[1749612253048,25.72818465,166.8,166.64,26.0]
[1749612253249,26.0,166.79,166.64,26.0]
[1749612253471,25.72818465,166.65,166.61,26.0]
[1749612253774,7.96,166.71,166.62,26.0]
[1749612254088,7.96,166.71,166.58,29.22]
[1749612254089,25.72818465,166.65,166.58,29.22]
[1749612254254,25.72818465,166.68,166.58,29.22]
[1749612256081,7.96,166.71,166.61,51.72818465]
[1749612256380,7.96,166.71,166.49,3.04619072]
[1749612256381,25.72818465,166.62,166.53,25.72818465]
[1749612256551,25.72818465,166.62,166.52,29.18]
[1749612256552,7.96,166.71,166.59,26.0]
[1749612256887,25.72818465,166.62,166.59,26.0]
[1749612257172,25.72818465,166.6,166.53,29.2]
[1749612257383,7.96,166.66,166.56,25.72818465]
[1749612257552,7.96,166.66,166.59,26.0]
[1749612257553,25.72818465,166.61,166.59,26.0]
[1749612257877,25.72818465,166.6,166.55,26.0]
[1749612258183,25.72818465,166.57,166.52,29.18]
[1749612258361,25.72818465,166.56,166.53,2.10473519]
[1749612258548,7.96,166.66,166.49,29.16]
[1749612258755,25.72818465,166.56,166.5,25.72818465]
[1749612258973,25.72818465,166.53,166.51,2.10565377]
[1749612259177,25.72818465,166.53,166.4,10.0]
[1749612259178,25.72818465,166.52,166.34,10.0]
[1749612259352,7.96,166.53,166.39,17.993703]
[1749612259554,7.96,166.53,166.4,2.10981156]
[1749612259852,25.13294886,166.59,166.41,2.10981156]
[1749612260058,25.72818465,166.5,166.42,2.10938202]
[1749612260363,25.72818465,166.54,166.48,25.72818465]
[1749612260676,25.72818465,166.53,166.5,26.0]
[1749612260862,25.72818465,166.51,166.44,18.64964886]
[1749612261062,25.72818465,166.56,166.44,18.64964886]
[1749612261063,25.72818465,166.49,166.44,18.64964886]
[1749612261273,25.72818465,166.5,166.44,18.64964886]
[1749612261456,7.96,166.58,166.46,44.37783351]
[1749612261657,6.4833,166.59,166.5,26.0]
[1749612261658,25.72818465,166.55,166.5,26.0]
[1749612261861,25.72818465,166.54,166.49,0.14216157]
[1749612262055,6.4833,166.59,166.48,26.0]
[1749612262280,25.72818465,166.52,166.48,26.0]
[1749612263279,6.4833,166.59,166.48,26.0]
[1749612263478,25.72818465,166.52,166.48,26.0]
[1749612264577,25.72818465,166.53,166.48,26.0]
[1749612265083,25.72818465,166.55,166.51,26.0]
[1749612265254,6.4833,166.59,166.51,26.0]
[1749612265255,25.72818465,166.53,166.51,26.0]
[1749612265458,25.72818465,166.52,166.49,26.14216157]
[1749612265661,25.72818465,166.52,166.5,2.11470902]
[1749612265870,25.72818465,166.53,166.49,26.14216157]
[1749612266066,25.72818465,166.53,166.5,2.11496764]
[1749612266269,25.72818465,166.53,166.49,26.14216157]
[1749612266485,25.72818465,166.52,166.5,2.11464328]
[1749612266672,25.72818465,166.52,166.49,26.14216157]
[1749612266876,25.72818465,166.53,166.5,2.11464498]
[1749612267076,25.72818465,166.53,166.49,26.14216157]
[1749612267759,6.4833,166.59,166.51,26.14216157]
[1749612267967,6.4833,166.59,166.52,27.8422503]
[1749612267968,25.72818465,166.58,166.52,27.8422503]
[1749612268188,25.72818465,166.58,166.52,25.72818465]
[1749612268359,25.72818465,166.57,166.51,51.87034622]
[1749612268559,25.72818465,166.57,166.52,2.11582585]
[1749612268782,25.72818465,166.56,166.51,26.14216157]
[1749612268981,14.99474904,166.73,166.5,25.72818465]
[1749612268982,25.72818465,166.74,166.61,26.0]
[1749612269180,25.72818465,166.74,166.58,18.64964886]
[1749612269181,25.72818465,166.66,166.62,2.11182188]
[1749612269387,25.72818465,166.63,166.59,55.26216157]
[1749612269569,18.64964886,166.76,166.57,0.14216157]
[1749612269570,25.72818465,166.6,166.57,0.14216157]
[1749612269892,28.64964886,166.67,166.49,18.64964886]
[1749612270061,0.14216157,166.64,166.5,2.11511163]
[1749612270260,0.14216157,166.64,166.48,29.14]
[1749612270261,6.3349,166.62,166.51,2.11511163]
[1749612270468,6.3349,166.62,166.41,0.60043343]
[1749612270778,6.3349,166.62,166.48,18.64964886]
[1749612271084,25.72818465,166.57,166.52,0.14216157]
[1749612271587,25.72818465,166.56,166.53,2.11415477]
[1749612271789,25.72818465,166.56,166.54,2.11415477]
[1749612272091,18.64964886,166.69,166.52,0.14216157]
[1749612272092,25.72818465,166.63,166.56,26.0]
[1749612272269,7.96,166.66,166.57,2.11439034]
[1749612272270,25.72818465,166.59,166.57,2.11439034]
[1749612272585,25.72818465,166.58,166.56,26.0]
[1749612272966,25.72818465,166.58,166.54,0.14216157]
[1749612273163,25.72818465,166.58,166.56,26.0]
[1749612273483,25.72818465,166.58,166.54,0.14216157]
[1749612273694,25.72818465,166.59,166.54,0.14216157]
[1749612273985,7.96,166.66,166.56,26.0]
[1749612274190,25.72818465,166.6,166.54,0.14216157]
[1749612274378,25.72818465,166.59,166.54,26.14216157]
[1749612274566,25.72818465,166.6,166.54,26.14216157]
[1749612274771,25.72818465,166.6,166.55,2.11475229]
[1749612274983,7.96,166.66,166.54,26.14216157]
[1749612274984,25.72818465,166.59,166.54,26.14216157]
[1749612275215,25.72818465,166.59,166.55,2.11516797]
[1749612275488,25.72818465,166.59,166.54,26.0]
[1749612275865,7.96,166.66,166.55,2.11465055]
[1749612276074,25.72818465,166.61,166.55,0.14216157]
[1749612276296,25.72818465,166.59,166.56,2.11434663]
[1749612276465,25.72818465,166.59,166.53,85.16818465]
[1749612276664,25.72818465,166.58,166.54,2.11454025]
[1749612276882,25.72818465,166.58,166.53,30.4]
[1749612276883,25.72818465,166.58,166.55,2.11454025]
[1749612277085,25.72818465,166.59,166.54,0.14216157]
[1749612277968,25.72818465,166.6,166.55,2.11190962]
[1749612278186,25.72818465,166.6,166.54,0.14216157]
[1749612278488,7.96,166.66,166.55,2.11290167]
[1749612278788,25.72818465,166.61,166.56,28.11290167]
[1749612278986,25.72818465,166.61,166.57,2.11229606]
[1749612279188,25.72818465,166.6,166.56,26.0]
[1749612279394,7.96,166.66,166.56,26.0]
[1749612279694,25.72818465,166.59,166.56,26.0]
[1749612280196,25.72818465,166.58,166.56,26.0]
[1749612281775,7.96,166.66,166.56,26.0]
[1749612281977,25.72818465,166.58,166.54,0.14216157]
[1749612282181,7.96,166.66,166.55,26.0]
[1749612282478,25.72818465,166.59,166.55,26.0]
[1749612282673,25.36847901,166.59,166.55,26.0]
[1749612283800,25.72818465,166.58,166.55,26.0]
[1749612285415,25.72818465,166.59,166.55,26.0]
[1749612285583,25.72818465,166.58,166.53,4.4]
[1749612285791,7.96,166.66,166.54,2.25975916]
[1749612286104,25.72818465,166.58,166.54,0.14216157]
[1749612286284,7.96,166.66,166.54,0.14216157]
[1749612286474,25.72818465,166.58,166.55,2.12012778]
[1749612286675,25.72818465,166.58,166.56,2.11991928]
[1749612286901,25.72818465,166.58,166.53,30.4]
[1749612287108,25.72818465,166.58,166.54,2.12229357]
[1749612287291,25.72818465,166.58,166.55,2.12229357]
[1749612287602,7.96,166.66,166.56,2.12229357]
[1749612287808,25.72818465,166.59,166.54,0.14216157]
[1749612287998,7.96,166.66,166.55,2.12195906]
[1749612288177,25.72818465,166.57,166.53,30.4]
[1749612288378,25.72818465,166.61,166.55,18.79181043]
[1749612288590,25.72818465,166.6,166.57,0.14216157]
[1749612289084,7.96,166.66,166.58,2.13385192]
[1749612289287,25.72818465,166.59,166.53,4.4]
[1749612289604,25.72818465,166.56,166.54,6.40217752]
[1749612289902,7.96,166.66,166.55,2.1340779]
[1749612290227,18.79181043,166.65,166.56,2.1340779]
[1749612290409,1.611,166.64,166.57,2.1367828]
[1749612290614,1.611,166.64,166.53,4.4]
[1749612290910,26.0,166.62,166.54,2.13676592]
[1749612291093,25.72818465,166.55,166.53,4.4]
[1749612291286,25.72818465,166.54,166.47,26.0]
[1749612291495,25.72818465,166.5,166.47,26.0]
[1749612291697,25.72818465,166.5,166.48,4.30973797]
[1749612291901,25.72818465,166.5,166.49,2.15495684]
[1749612292088,25.72818465,166.5,166.49,6.46546876]
[1749612292294,25.72818465,166.5,166.49,6.46536559]
[1749612292594,25.72818465,166.56,166.49,4.31024373]
[1749612292782,25.72818465,166.54,166.51,0.14216157]
[1749612292988,25.72818465,166.53,166.52,2.15509651]
[1749612293184,25.72818465,166.53,166.52,6.46257984]
[1749612293384,25.72818465,166.53,166.5,0.14216157]
[1749612293598,25.72818465,166.52,166.51,2.15450546]
[1749612293913,1.611,166.64,166.53,26.0]
[1749612294087,25.72818465,166.57,166.54,2.15363371]
[1749612294283,9.571,166.64,166.55,6.46055738]
[1749612294485,25.72818465,166.56,166.43,18.12]
[1749612294708,25.72818465,166.5,166.47,26.14216157]
[1749612294899,25.72818465,166.49,166.48,6.60755169]
[1749612295096,25.72818465,166.53,166.49,0.14216157]
[1749612295306,25.72818465,166.53,166.5,6.46422979]
[1749612295604,25.72818465,166.53,166.51,32.46408344]
[1749612295800,25.72818465,166.55,166.52,2.29635711]
[1749612296112,25.72818465,166.54,166.53,6.46421635]
[1749612296295,25.72818465,166.54,166.53,6.48515725]
[1749612296602,25.72818465,166.54,166.53,8.72465946]
[1749612296793,25.72818465,166.54,166.53,4.4]
[1749612296982,25.72818465,166.54,166.53,6.56237853]
[1749612297508,25.72818465,166.54,166.53,8.72474349]
[1749612297808,25.72818465,166.54,166.53,10.88804664]
[1749612298208,25.72818465,166.54,166.53,8.72535052]
[1749612298408,25.72818465,166.54,166.53,10.88802198]
[1749612298710,25.72818465,166.54,166.53,6.56279711]
[1749612298905,7.96,166.62,166.53,6.56290736]
[1749612299110,7.96,166.62,166.54,32.48871187]
[1749612299284,1.611,166.64,166.55,4.32463169]
[1749612299483,1.611,166.64,166.56,4.32463169]
[1749612299484,25.72818465,166.58,166.56,4.32463169]
[1749612299700,25.72818465,166.58,166.57,4.32889595]
[1749612299887,25.72818465,166.58,166.57,2.16444562]
[1749612300088,25.72818465,166.58,166.57,6.49249891]
[1749612300412,25.72818465,166.58,166.57,6.49242585]
[1749612300717,25.72818465,166.58,166.54,26.0]
[1749612300895,25.72818465,166.57,166.55,2.16462879]
[1749612301087,1.611,166.64,166.56,4.32910314]
[1749612301297,25.72818465,166.57,166.53,30.4]
[1749612301605,25.72818465,166.56,166.54,6.4940685]
[1749612301799,25.72818465,166.56,166.53,30.4]
[1749612301995,25.72818465,166.57,166.54,2.1646936]
[1749612302196,25.72818465,166.57,166.53,30.4]
[1749612302394,1.611,166.64,166.54,6.63561152]
[1749612302596,25.72818465,166.59,166.55,32.49344995]
[1749612302793,1.611,166.64,166.59,26.0]
[1749612303018,7.62,166.68,166.6,32.52555238]
[1749612303203,25.72818465,166.63,166.6,28.2]
[1749612303403,7.62,166.68,166.6,28.2]
[1749612303404,25.72818465,166.62,166.61,6.49186313]
[1749612303589,25.72818465,166.62,166.61,6.49301004]
[1749612303789,7.62,166.68,166.61,2.30738712]
[1749612303989,25.72818465,166.65,166.62,4.32870359]
[1749612304202,25.72818465,166.64,166.63,2.16466607]
[1749612304492,25.72818465,166.64,166.63,6.49420142]
[1749612304690,25.72818465,166.64,166.63,6.49465054]
[1749612304918,6.1911,166.7,166.63,4.32975168]
[1749612305252,6.1911,166.7,166.64,4.32931549]
[1749612305399,6.1911,166.7,166.65,6.49441905]
[1749612305714,6.1911,166.7,166.66,6.49441905]
[1749612306017,6.1911,166.7,166.67,6.49441905]
[1749612306189,6.1911,166.7,166.63,26.0]
[1749612306510,6.1911,166.7,166.64,6.49164735]
[1749612306717,6.1911,166.7,166.65,6.49145871]
[1749612306890,6.1911,166.7,166.66,4.32763239]
[1749612307089,25.72818465,166.68,166.67,6.49083185]
[1749612307315,1.5681,166.73,166.67,32.49083185]
[1749612307517,25.72818465,166.71,166.68,6.49083185]
[1749612307819,25.72818465,166.69,166.67,26.0]
[1749612308114,25.72818465,166.69,166.64,28.14]
[1749612308115,25.72818465,166.7,166.68,6.46369702]
[1749612308417,25.72818465,166.8,166.68,6.46369702]
[1749612308418,9.1104,166.81,166.71,26.0]
[1749612308620,9.1104,166.81,166.72,2.15302829]
[1749612308920,25.72818465,166.8,166.73,6.45913264]
[1749612309127,25.72818465,166.74,166.71,26.0]
[1749612309308,25.72818465,166.74,166.72,6.45988611]
[1749612309507,25.72818465,166.73,166.68,54.12]
[1749612309736,25.72818465,166.72,166.68,54.12]
[1749612309913,25.72818465,166.8,166.69,2.15369834]
[1749612310105,25.72818465,166.8,166.7,4.30685073]
[1749612310299,25.72818465,166.8,166.69,0.14216157]
[1749612310523,25.72818465,166.8,166.7,6.46225278]
[1749612310732,25.72818465,166.8,166.71,2.15408426]
[1749612310908,25.72818465,166.72,166.68,54.12]
[1749612311101,25.72818465,166.71,166.69,8.70834807]
[1749612311411,25.72818465,166.71,166.7,4.30798083]
[1749612311607,25.72818465,166.71,166.7,6.46195631]
[1749612311927,25.72818465,166.71,166.7,2.1544631]
[1749612312108,9.1104,166.81,166.7,53.88205525]
[1749612312424,9.1104,166.81,166.72,0.14216157]
[1749612312624,25.72818465,166.77,166.73,30.30481029]
[1749612312807,25.72818465,166.8,166.74,6.45486349]
[1749612313126,25.72818465,166.8,166.73,26.0]
[1749612313127,25.72818465,166.75,166.71,26.0]
[1749612313441,25.72818465,166.8,166.72,6.45641388]
[1749612313596,25.72818465,166.75,166.71,26.0]
[1749612313801,25.72818465,166.76,166.72,6.45428106]
[1749612314001,9.1104,166.81,166.74,26.0]
[1749612314002,25.72818465,166.77,166.74,26.0]
[1749612314198,9.1104,166.81,166.75,4.30176346]
[1749612314426,25.72818465,166.78,166.76,2.150931]
[1749612314633,25.72818465,166.78,166.74,28.1]
[1749612314933,7.6,166.86,166.75,6.45268651]
[1749612315234,25.72818465,166.8,166.77,26.0]
[1749612315430,25.72818465,166.81,166.79,26.0]
[1749612315930,25.72818465,166.81,166.8,4.29911074]
[1749612316103,7.9709,166.88,166.81,26.0]
[1749612316302,6.1738,166.94,166.82,28.04]
[1749612316510,25.72818465,166.87,166.83,26.14216157]
[1749612316714,25.72818465,166.87,166.85,26.0]
[1749612317437,6.1738,166.94,166.85,26.0]
[1749612317736,25.72818465,166.86,166.82,28.04]
[1749612317933,25.72818465,166.83,166.82,26.0]
[1749612318649,25.72818465,166.92,166.82,26.0]
[1749612318842,25.72818465,166.84,166.82,26.0]
[1749612319228,20.72,166.96,166.82,26.0]
[1749612319229,9.5847,167.0,166.85,0.14216157]
[1749612319441,25.72818465,166.96,166.89,26.0]
[1749612319745,25.72818465,166.92,166.9,28.26]
[1749612320273,3.0,167.0,166.85,0.59904669]
[1749612320444,25.72818465,166.92,166.78,18.64964886]
[1749612320621,25.72818465,166.92,166.79,28.3]
[1749612320622,25.72818465,166.86,166.79,28.3]
[1749612320819,25.72818465,166.92,166.77,17.956007]
[1749612321043,25.72818465,166.8,166.77,28.36]
[1749612321230,25.72818465,166.78,166.75,28.36]
[1749612321430,25.72818465,166.79,166.73,25.72818465]
[1749612321634,25.72818465,166.79,166.74,2.13143466]
[1749612321829,25.72818465,166.79,166.73,25.72818465]
[1749612321830,25.72818465,166.79,166.75,2.13143466]
[1749612322141,1.5889,166.88,166.75,25.72818465]
[1749612322347,25.72818465,166.83,166.77,25.72818465]
[1749612322650,25.72818465,166.87,166.82,26.0]
[1749612322949,25.72818465,166.87,166.82,54.36]
[1749612323145,1.5889,166.88,166.82,54.36]
[1749612323325,25.72818465,166.87,166.82,54.36]
[1749612323647,25.72818465,166.86,166.82,54.36]
[1749612323835,25.72818465,166.83,166.77,0.14216157]
[1749612324147,25.72818465,166.83,166.81,26.0]
[1749612324348,25.72818465,166.84,166.81,26.0]
[1749612324547,1.5889,166.88,166.81,26.0]
[1749612324729,25.72818465,166.87,166.82,28.32]
[1749612324923,25.72818465,166.85,166.82,28.32]
[1749612325247,25.72818465,166.84,166.82,28.32]
[1749612325423,25.72818465,166.83,166.76,25.72818465]
[1749612325620,25.72818465,166.92,166.8,26.0]
[1749612325829,25.72818465,166.82,166.8,26.0]
[1749612326550,25.72818465,166.85,166.81,28.3]
[1749612326928,25.72818465,166.92,166.82,26.0]
[1749612326929,25.72818465,166.84,166.82,26.0]
[1749612328739,25.36901017,166.84,166.82,26.0]
[1749612329441,25.72818465,166.84,166.82,26.0]
[1749612330531,25.72818465,166.83,166.8,28.18]
[1749612330730,25.72818465,166.81,166.73,28.16]
[1749612330950,25.72818465,166.74,166.65,25.72818465]
[1749612331141,25.72818465,166.74,166.59,6.2635]
[1749612331142,25.72818465,166.7,166.66,2.11569358]
[1749612331341,25.72818465,166.8,166.68,26.0]
[1749612331527,13.6218,166.81,166.7,26.0]